[Event "Titled Tuesday Blitz May 24 Late 2022"]
[White "Griffith, Kyron"]
[Black "Mekhitarian, Krikor Sevag"]
[WhiteFideId "2046318"]
[BlackFideId "2107660"]
[WhiteElo "2232"]
[BlackElo "2598"]
[Result "1-0"]
[Round "09"]
[TimeControl "180+1"]
[Date "2022.05.24"]
[WhiteClock "0:00:23"]
[BlackClock "0:00:02"]

1. e4 {[%clk 0:03:00]}  e5 {[%clk 0:03:00]} 2. Nf3 {[%clk 0:03:01]}  Nf6 {[%clk 0:03:00]} 3. Nxe5 {[%clk 0:03:00]}  d6 {[%clk 0:03:00]} 4. Nc4 {[%clk 0:02:59]}  Nxe4 {[%clk 0:03:00]} 5. Qe2 {[%clk 0:02:58]}  Qe7 {[%clk 0:02:59]} 6. Ne3 {[%clk 0:02:58]}  Nc6 {[%clk 0:03:00]} 7. Nc3 {[%clk 0:02:57]}  Nf6 {[%clk 0:02:29]} 8. Ned5 {[%clk 0:02:54]}  Qxe2+ {[%clk 0:02:24]} 9. Bxe2 {[%clk 0:02:53]}  Nxd5 {[%clk 0:02:22]} 10. Nxd5 {[%clk 0:02:54]}  Kd8 {[%clk 0:02:23]} 11. c3 {[%clk 0:02:49]}  Be6 {[%clk 0:02:22]} 12. Nf4 {[%clk 0:02:49]}  Bf5 {[%clk 0:02:22]} 13. d4 {[%clk 0:02:48]}  Kd7 {[%clk 0:02:22]} 14. Bf3 {[%clk 0:02:43]}  Re8+ {[%clk 0:02:20]} 15. Be3 {[%clk 0:02:43]}  Be4 {[%clk 0:02:16]} 16. Bxe4 {[%clk 0:02:34]}  Rxe4 {[%clk 0:02:16]} 17. O-O-O {[%clk 0:02:25]}  g6 {[%clk 0:01:56]} 18. Nd5 {[%clk 0:02:12]}  Bg7 {[%clk 0:01:56]} 19. Rhe1 {[%clk 0:02:05]}  Rhe8 {[%clk 0:01:53]} 20. Bd2 {[%clk 0:01:59]}  Rxe1 {[%clk 0:01:48]} 21. Rxe1 {[%clk 0:02:00]}  Rxe1+ {[%clk 0:01:48]} 22. Bxe1 {[%clk 0:02:01]}  Nd8 {[%clk 0:01:43]} 23. Bd2 {[%clk 0:01:55]}  Nc6 {[%clk 0:01:43]} 24. Kc2 {[%clk 0:01:51]}  Nd8 {[%clk 0:01:35]} 25. Kd3 {[%clk 0:01:49]}  c6 {[%clk 0:01:34]} 26. Nf4 {[%clk 0:01:46]}  d5 {[%clk 0:01:34]} 27. h4 {[%clk 0:01:41]}  h5 {[%clk 0:01:34]} 28. f3 {[%clk 0:01:36]}  Bf6 {[%clk 0:01:27]} 29. g3 {[%clk 0:01:36]}  Be7 {[%clk 0:01:27]} 30. Be1 {[%clk 0:01:32]}  Bd6 {[%clk 0:01:27]} 31. Nh3 {[%clk 0:01:27]}  Ne6 {[%clk 0:01:24]} 32. Ke3 {[%clk 0:01:21]}  b5 {[%clk 0:01:09]} 33. g4 {[%clk 0:01:15]}  Ng7 {[%clk 0:01:05]} 34. Ng5 {[%clk 0:01:05]}  Ke8 {[%clk 0:00:55]} 35. Nh3 {[%clk 0:01:04]}  f6 {[%clk 0:00:44]} 36. Nf4 {[%clk 0:00:59]}  Bxf4+ {[%clk 0:00:41]} 37. Kxf4 {[%clk 0:01:00]}  Ne6+ {[%clk 0:00:41]} 38. Ke3 {[%clk 0:00:54]}  Kf7 {[%clk 0:00:41]} 39. Bg3 {[%clk 0:00:54]}  Nf8 {[%clk 0:00:30]} 40. Bd6 {[%clk 0:00:49]}  Ne6 {[%clk 0:00:29]} 41. b3 {[%clk 0:00:48]}  a6 {[%clk 0:00:27]} 42. Kf2 {[%clk 0:00:42]}  Nd8 {[%clk 0:00:23]} 43. Bc7 {[%clk 0:00:37]}  Ne6 {[%clk 0:00:21]} 44. Bd6 {[%clk 0:00:38]}  Ng7 {[%clk 0:00:20]} 45. Kg3 {[%clk 0:00:36]}  Ke6 {[%clk 0:00:19]} 46. Bf4 {[%clk 0:00:34]}  Ne8 {[%clk 0:00:16]} 47. Bb8 {[%clk 0:00:32]}  Kf7 {[%clk 0:00:15]} 48. Bf4 {[%clk 0:00:31]}  f5 {[%clk 0:00:14]} 49. Be5 {[%clk 0:00:28]}  fxg4 {[%clk 0:00:04]} 50. fxg4 {[%clk 0:00:29]}  Nf6 {[%clk 0:00:02]} 51. Bxf6 {[%clk 0:00:27]}  Kxf6 {[%clk 0:00:03]} 52. gxh5 {[%clk 0:00:27]}  gxh5 {[%clk 0:00:03]} 53. Kf4 {[%clk 0:00:26]}  a5 {[%clk 0:00:03]} 54. a4 {[%clk 0:00:23]}  b4 {[%clk 0:00:01]} 55. cxb4 {[%clk 0:00:23]}  axb4 {[%clk 0:00:02]} 56. a5 {[%clk 0:00:23]} 1-0


[Site "https://www.chess.com"]

[Event "Titled Tuesday Blitz May 24 Late 2022"]
[White "Haas, Michael"]
[Black "Mangialardo, Tiago Carvalho"]
[WhiteFideId "1629514"]
[BlackFideId "2130718"]
[WhiteElo "1982"]
[BlackElo "2161"]
[Result "1-0"]
[Round "09"]
[TimeControl "180+1"]
[Date "2022.05.25"]
[WhiteClock "0:00:05"]
[BlackClock "0:00:03"]

1. d4 {[%clk 0:02:56]}  d5 {[%clk 0:02:55]} 2. c4 {[%clk 0:02:53]}  c5 {[%clk 0:02:55]} 3. cxd5 {[%clk 0:02:49]}  Qxd5 {[%clk 0:02:45]} 4. Nf3 {[%clk 0:02:47]}  Nf6 {[%clk 0:02:30]} 5. Nc3 {[%clk 0:02:39]}  Qh5 {[%clk 0:02:02]} 6. Bf4 {[%clk 0:02:08]}  e6 {[%clk 0:01:59]} 7. Nb5 {[%clk 0:01:55]}  Na6 {[%clk 0:01:54]} 8. Nd6+ {[%clk 0:01:53]}  Bxd6 {[%clk 0:01:50]} 9. Bxd6 {[%clk 0:01:54]}  Ne4 {[%clk 0:01:43]} 10. dxc5 {[%clk 0:01:48]}  Nxd6 {[%clk 0:01:31]} 11. cxd6 {[%clk 0:01:49]}  O-O {[%clk 0:01:00]} 12. e4 {[%clk 0:01:45]}  Qa5+ {[%clk 0:00:55]} 13. Qd2 {[%clk 0:01:45]}  Qxd2+ {[%clk 0:00:45]} 14. Nxd2 {[%clk 0:01:46]}  e5 {[%clk 0:00:45]} 15. Bxa6 {[%clk 0:01:42]}  bxa6 {[%clk 0:00:46]} 16. Nc4 {[%clk 0:01:42]}  Bb7 {[%clk 0:00:43]} 17. f3 {[%clk 0:01:40]}  f6 {[%clk 0:00:43]} 18. Na5 {[%clk 0:01:31]}  Rab8 {[%clk 0:00:38]} 19. Rc1 {[%clk 0:01:29]}  Rfd8 {[%clk 0:00:31]} 20. Nc4 {[%clk 0:00:55]}  Rbc8 {[%clk 0:00:11]} 21. O-O {[%clk 0:00:51]}  Bc6 {[%clk 0:00:10]} 22. Rfd1 {[%clk 0:00:49]}  Bb5 {[%clk 0:00:10]} 23. b3 {[%clk 0:00:41]}  Kf7 {[%clk 0:00:05]} 24. a4 {[%clk 0:00:38]}  Be8 {[%clk 0:00:02]} 25. Rd2 {[%clk 0:00:25]}  Ke6 {[%clk 0:00:03]} 26. Rcd1 {[%clk 0:00:25]}  Bd7 {[%clk 0:00:03]} 27. Ne3 {[%clk 0:00:18]}  Rb8 {[%clk 0:00:03]} 28. Rd3 {[%clk 0:00:16]}  Rb6 {[%clk 0:00:03]} 29. Nc4 {[%clk 0:00:16]}  Rc6 {[%clk 0:00:03]} 30. Na5 {[%clk 0:00:16]}  Rb6 {[%clk 0:00:03]} 31. R1d2 {[%clk 0:00:15]}  Rc8 {[%clk 0:00:03]} 32. Kf2 {[%clk 0:00:14]}  Rc1 {[%clk 0:00:02]} 33. h3 {[%clk 0:00:13]}  g6 {[%clk 0:00:02]} 34. g3 {[%clk 0:00:13]}  h5 {[%clk 0:00:03]} 35. Nc4 {[%clk 0:00:12]}  Rb4 {[%clk 0:00:02]} 36. Na5 {[%clk 0:00:10]}  Rb6 {[%clk 0:00:02]} 37. Ke3 {[%clk 0:00:09]}  g5 {[%clk 0:00:02]} 38. Ke2 {[%clk 0:00:09]}  Rc8 {[%clk 0:00:02]} 39. Rd1 {[%clk 0:00:09]}  Rcb8 {[%clk 0:00:02]} 40. Kd2 {[%clk 0:00:08]}  Rb4 {[%clk 0:00:01]} 41. Rc1 {[%clk 0:00:08]}  R4b6 {[%clk 0:00:02]} 42. Rc7 {[%clk 0:00:08]}  Rb4 {[%clk 0:00:02]} 43. Rdc3 {[%clk 0:00:08]}  R4b6 {[%clk 0:00:02]} 44. Kd3 {[%clk 0:00:08]}  Rxd6+ {[%clk 0:00:02]} 45. Ke3 {[%clk 0:00:08]}  Rdb6 {[%clk 0:00:02]} 46. Rxa7 {[%clk 0:00:06]}  Rd6 {[%clk 0:00:02]} 47. Rcc7 {[%clk 0:00:06]}  Rd8 {[%clk 0:00:02]} 48. Nc4 {[%clk 0:00:06]}  Rb6 {[%clk 0:00:02]} 49. Nxb6 {[%clk 0:00:04]}  Be8 {[%clk 0:00:02]} 50. Nc4 {[%clk 0:00:04]}  Rd1 {[%clk 0:00:03]} 51. Rxa6+ {[%clk 0:00:05]} 1-0


[Site "https://www.chess.com"]

[Event "Titled Tuesday Blitz May 24 Late 2022"]
[White "Hansen, Eric"]
[Black "Matinian, Nikita"]
[WhiteFideId "2606771"]
[BlackFideId "24129100"]
[WhiteElo "2568"]
[BlackElo "2422"]
[Result "1-0"]
[Round "09"]
[TimeControl "180+1"]
[Date "2022.05.24"]
[WhiteClock "0:00:30"]
[BlackClock "0:00:03"]

1. d4 {[%clk 0:03:00]}  Nf6 {[%clk 0:02:58]} 2. c4 {[%clk 0:02:59]}  g6 {[%clk 0:02:59]} 3. Nc3 {[%clk 0:02:59]}  Bg7 {[%clk 0:02:59]} 4. e4 {[%clk 0:02:59]}  O-O {[%clk 0:03:00]} 5. Be2 {[%clk 0:02:59]}  d6 {[%clk 0:03:01]} 6. h4 {[%clk 0:02:59]}  h5 {[%clk 0:02:59]} 7. Nf3 {[%clk 0:02:57]}  c5 {[%clk 0:02:58]} 8. d5 {[%clk 0:02:57]}  Bg4 {[%clk 0:02:56]} 9. Bf4 {[%clk 0:02:53]}  Nbd7 {[%clk 0:02:53]} 10. Qc2 {[%clk 0:02:53]}  a6 {[%clk 0:02:51]} 11. a4 {[%clk 0:02:53]}  Re8 {[%clk 0:02:39]} 12. O-O {[%clk 0:02:52]}  Qc7 {[%clk 0:01:46]} 13. Rfe1 {[%clk 0:02:48]}  Bxf3 {[%clk 0:01:40]} 14. Bxf3 {[%clk 0:02:48]}  Ne5 {[%clk 0:01:40]} 15. Be2 {[%clk 0:02:48]}  Rad8 {[%clk 0:01:22]} 16. a5 {[%clk 0:02:43]}  Kh7 {[%clk 0:01:22]} 17. Ra3 {[%clk 0:02:38]}  Qc8 {[%clk 0:01:20]} 18. Na4 {[%clk 0:02:36]}  Bh6 {[%clk 0:01:14]} 19. Bg3 {[%clk 0:02:30]}  Qc7 {[%clk 0:01:05]} 20. Nb6 {[%clk 0:02:29]}  Nfd7 {[%clk 0:00:59]} 21. Rb3 {[%clk 0:02:24]}  Nxb6 {[%clk 0:00:44]} 22. axb6 {[%clk 0:02:25]}  Qd7 {[%clk 0:00:42]} 23. f4 {[%clk 0:01:45]}  Ng4 {[%clk 0:00:42]} 24. e5 {[%clk 0:01:46]}  dxe5 {[%clk 0:00:34]} 25. fxe5 {[%clk 0:01:46]}  f5 {[%clk 0:00:31]} 26. Bxg4 {[%clk 0:01:38]}  hxg4 {[%clk 0:00:32]} 27. e6 {[%clk 0:01:24]}  Qa4 {[%clk 0:00:32]} 28. h5 {[%clk 0:01:24]}  Rg8 {[%clk 0:00:32]} 29. d6 {[%clk 0:01:07]}  exd6 {[%clk 0:00:29]} 30. e7 {[%clk 0:01:07]}  Rde8 {[%clk 0:00:28]} 31. Re6 {[%clk 0:01:03]}  Qa1+ {[%clk 0:00:13]} 32. Kh2 {[%clk 0:00:54]}  f4 {[%clk 0:00:06]} 33. hxg6+ {[%clk 0:00:47]}  Kh8 {[%clk 0:00:04]} 34. Be1 {[%clk 0:00:46]}  Rg7 {[%clk 0:00:02]} 35. Qf5 {[%clk 0:00:39]}  g3+ {[%clk 0:00:03]} 36. Kh3 {[%clk 0:00:39]}  Qd1 {[%clk 0:00:02]} 37. Rf3 {[%clk 0:00:33]}  Rgxe7 {[%clk 0:00:02]} 38. Rxe7 {[%clk 0:00:29]}  Rxe7 {[%clk 0:00:03]} 39. Qf6+ {[%clk 0:00:30]}  Rg7 {[%clk 0:00:03]} 40. Qf8+ {[%clk 0:00:30]} 1-0


[Site "https://www.chess.com"]

[Event "Titled Tuesday Blitz May 24 Late 2022"]
[White "Janaszak, Dawid"]
[Black "D`Arruda, Ricardo D."]
[WhiteFideId "1119206"]
[BlackFideId "100692"]
[WhiteElo "2199"]
[BlackElo "2509"]
[Result "1-0"]
[Round "09"]
[TimeControl "180+1"]
[Date "2022.05.24"]
[WhiteClock "0:00:17"]
[BlackClock "0:00:13"]

1. e4 {[%clk 0:03:00]}  c5 {[%clk 0:02:51]} 2. Nc3 {[%clk 0:03:00]}  e6 {[%clk 0:02:50]} 3. d4 {[%clk 0:02:55]}  cxd4 {[%clk 0:02:50]} 4. Qxd4 {[%clk 0:02:56]}  Nc6 {[%clk 0:02:49]} 5. Qd3 {[%clk 0:02:55]}  Nf6 {[%clk 0:02:48]} 6. Bf4 {[%clk 0:02:55]}  d5 {[%clk 0:02:47]} 7. O-O-O {[%clk 0:02:52]}  Bd6 {[%clk 0:02:19]} 8. Bxd6 {[%clk 0:02:43]}  Qxd6 {[%clk 0:02:20]} 9. exd5 {[%clk 0:02:43]}  exd5 {[%clk 0:02:20]} 10. Nxd5 {[%clk 0:02:38]}  O-O {[%clk 0:02:20]} 11. Nf3 {[%clk 0:02:32]}  Bg4 {[%clk 0:02:10]} 12. Be2 {[%clk 0:02:02]}  Rfe8 {[%clk 0:02:04]} 13. h3 {[%clk 0:01:51]}  Bh5 {[%clk 0:01:34]} 14. Ne3 {[%clk 0:01:49]}  Qf4 {[%clk 0:01:22]} 15. Kb1 {[%clk 0:01:37]}  Ne4 {[%clk 0:01:20]} 16. Nd5 {[%clk 0:01:08]}  Qb8 {[%clk 0:01:10]} 17. Rhf1 {[%clk 0:01:04]}  Bg6 {[%clk 0:01:07]} 18. Qa3 {[%clk 0:01:00]}  a5 {[%clk 0:00:49]} 19. Bd3 {[%clk 0:01:00]}  Nb4 {[%clk 0:00:47]} 20. Nxb4 {[%clk 0:00:56]}  axb4 {[%clk 0:00:48]} 21. Qxb4 {[%clk 0:00:56]}  Qa7 {[%clk 0:00:47]} 22. a3 {[%clk 0:00:52]}  Nxf2 {[%clk 0:00:47]} 23. Bxg6 {[%clk 0:00:50]}  hxg6 {[%clk 0:00:40]} 24. Rd7 {[%clk 0:00:46]}  Ne4 {[%clk 0:00:36]} 25. Qxb7 {[%clk 0:00:36]}  Nc3+ {[%clk 0:00:30]} 26. Ka1 {[%clk 0:00:29]}  Qxb7 {[%clk 0:00:18]} 27. Rxb7 {[%clk 0:00:29]}  Nd5 {[%clk 0:00:17]} 28. Re1 {[%clk 0:00:23]}  Ne3 {[%clk 0:00:16]} 29. Re2 {[%clk 0:00:20]}  f5 {[%clk 0:00:16]} 30. Ka2 {[%clk 0:00:18]}  f4 {[%clk 0:00:16]} 31. Nd4 {[%clk 0:00:17]}  Rad8 {[%clk 0:00:14]} 32. c3 {[%clk 0:00:17]}  g5 {[%clk 0:00:13]} 33. a4 {[%clk 0:00:17]}  Re5 {[%clk 0:00:13]} 34. Nc6 {[%clk 0:00:17]} 1-0


[Site "https://www.chess.com"]

[Event "Titled Tuesday Blitz May 24 Late 2022"]
[White "Kaasen, Tor Fredrik"]
[Black "Vujic, Mihailo"]
[WhiteFideId "1516647"]
[BlackFideId "918873"]
[WhiteElo "2335"]
[BlackElo "2256"]
[Result "1/2-1/2"]
[Round "09"]
[TimeControl "180+1"]
[Date "2022.05.24"]
[WhiteClock "0:00:15"]
[BlackClock "0:00:09"]

1. e4 {[%clk 0:03:00]}  e5 {[%clk 0:02:59]} 2. Nf3 {[%clk 0:03:01]}  Nc6 {[%clk 0:03:00]} 3. Bb5 {[%clk 0:03:01]}  f5 {[%clk 0:03:00]} 4. Nc3 {[%clk 0:03:00]}  fxe4 {[%clk 0:03:00]} 5. Nxe4 {[%clk 0:03:01]}  d5 {[%clk 0:03:00]} 6. Nxe5 {[%clk 0:02:58]}  dxe4 {[%clk 0:03:01]} 7. Nxc6 {[%clk 0:02:59]}  Qg5 {[%clk 0:03:01]} 8. Qe2 {[%clk 0:02:40]}  Nf6 {[%clk 0:03:02]} 9. Nxa7+ {[%clk 0:02:33]}  Kd8 {[%clk 0:02:54]} 10. d3 {[%clk 0:01:50]}  Qxg2 {[%clk 0:02:51]} 11. Rf1 {[%clk 0:01:49]}  Rxa7 {[%clk 0:02:50]} 12. Be3 {[%clk 0:01:43]}  Bg4 {[%clk 0:02:34]} 13. Qd2 {[%clk 0:01:42]}  Ra8 {[%clk 0:02:19]} 14. dxe4+ {[%clk 0:01:42]}  Kc8 {[%clk 0:02:18]} 15. f3 {[%clk 0:01:32]}  Qxd2+ {[%clk 0:02:16]} 16. Bxd2 {[%clk 0:01:22]}  Be6 {[%clk 0:02:05]} 17. a3 {[%clk 0:01:22]}  Bc5 {[%clk 0:02:05]} 18. O-O-O {[%clk 0:01:18]}  c6 {[%clk 0:01:57]} 19. Bd3 {[%clk 0:01:16]}  Bh3 {[%clk 0:01:45]} 20. Rfe1 {[%clk 0:01:16]}  Bg2 {[%clk 0:01:40]} 21. Be3 {[%clk 0:00:55]}  Bxe3+ {[%clk 0:01:33]} 22. Rxe3 {[%clk 0:00:56]}  Nh5 {[%clk 0:01:21]} 23. e5 {[%clk 0:00:43]}  Kc7 {[%clk 0:01:03]} 24. Rg1 {[%clk 0:00:37]}  Nf4 {[%clk 0:00:55]} 25. Re4 {[%clk 0:00:35]}  Nxd3+ {[%clk 0:00:54]} 26. cxd3 {[%clk 0:00:36]}  Bxf3 {[%clk 0:00:55]} 27. Rxg7+ {[%clk 0:00:37]}  Kb6 {[%clk 0:00:45]} 28. Rb4+ {[%clk 0:00:36]}  Kc5 {[%clk 0:00:45]} 29. d4+ {[%clk 0:00:12]}  Kd5 {[%clk 0:00:45]} 30. Rgxb7 {[%clk 0:00:09]}  Rad8 {[%clk 0:00:35]} 31. Kd2 {[%clk 0:00:09]}  Ke4 {[%clk 0:00:27]} 32. Rg7 {[%clk 0:00:05]}  Rxd4+ {[%clk 0:00:23]} 33. Rxd4+ {[%clk 0:00:06]}  Kxd4 {[%clk 0:00:24]} 34. e6 {[%clk 0:00:07]}  Re8 {[%clk 0:00:20]} 35. Rxh7 {[%clk 0:00:05]}  Rxe6 {[%clk 0:00:18]} 36. Rh4+ {[%clk 0:00:05]}  Be4 {[%clk 0:00:18]} 37. Rg4 {[%clk 0:00:05]}  Rf6 {[%clk 0:00:18]} 38. Rg3 {[%clk 0:00:04]}  Rf2+ {[%clk 0:00:18]} 39. Kc1 {[%clk 0:00:05]}  Rc2+ {[%clk 0:00:17]} 40. Kb1 {[%clk 0:00:03]}  Rxh2+ {[%clk 0:00:15]} 41. Ka2 {[%clk 0:00:03]}  Bd5+ {[%clk 0:00:14]} 42. Kb1 {[%clk 0:00:04]}  Rh1+ {[%clk 0:00:14]} 43. Kc2 {[%clk 0:00:03]}  Rh2+ {[%clk 0:00:12]} 44. Kc1 {[%clk 0:00:04]}  Be4 {[%clk 0:00:12]} 45. Rc3 {[%clk 0:00:04]}  c5 {[%clk 0:00:11]} 46. a4 {[%clk 0:00:05]}  c4 {[%clk 0:00:11]} 47. a5 {[%clk 0:00:04]}  Rh1+ {[%clk 0:00:09]} 48. Kd2 {[%clk 0:00:04]}  Ra1 {[%clk 0:00:08]} 49. Rh3 {[%clk 0:00:03]}  Rxa5 {[%clk 0:00:07]} 50. Rh8 {[%clk 0:00:03]}  Rg5 {[%clk 0:00:07]} 51. Rd8+ {[%clk 0:00:04]}  Bd5 {[%clk 0:00:07]} 52. Kc2 {[%clk 0:00:04]}  Rg2+ {[%clk 0:00:07]} 53. Kc1 {[%clk 0:00:05]}  Kc5 {[%clk 0:00:06]} 54. Rc8+ {[%clk 0:00:06]}  Kd4 {[%clk 0:00:06]} 55. Rd8 {[%clk 0:00:06]}  Rf2 {[%clk 0:00:07]} 56. Rd7 {[%clk 0:00:06]}  Ke4 {[%clk 0:00:07]} 57. Re7+ {[%clk 0:00:07]}  Kd3 {[%clk 0:00:07]} 58. Re1 {[%clk 0:00:07]}  Rc2+ {[%clk 0:00:06]} 59. Kb1 {[%clk 0:00:07]}  Rd2 {[%clk 0:00:06]} 60. Kc1 {[%clk 0:00:07]}  Rc2+ {[%clk 0:00:05]} 61. Kb1 {[%clk 0:00:08]}  Rf2 {[%clk 0:00:05]} 62. Kc1 {[%clk 0:00:08]}  Kd4 {[%clk 0:00:05]} 63. Rd1+ {[%clk 0:00:09]}  Kc5 {[%clk 0:00:05]} 64. Re1 {[%clk 0:00:09]}  Bf3 {[%clk 0:00:05]} 65. Re8 {[%clk 0:00:10]}  Kb4 {[%clk 0:00:06]} 66. Rb8+ {[%clk 0:00:10]}  Kc5 {[%clk 0:00:06]} 67. Rc8+ {[%clk 0:00:11]}  Kd4 {[%clk 0:00:07]} 68. Rd8+ {[%clk 0:00:11]}  Bd5 {[%clk 0:00:07]} 69. Rd7 {[%clk 0:00:12]}  Rf1+ {[%clk 0:00:08]} 70. Kc2 {[%clk 0:00:12]}  Rf5 {[%clk 0:00:08]} 71. Kd2 {[%clk 0:00:12]}  Kc5 {[%clk 0:00:08]} 72. Rc7+ {[%clk 0:00:12]}  Kd6 {[%clk 0:00:08]} 73. Rc8 {[%clk 0:00:13]}  Rf2+ {[%clk 0:00:08]} 74. Kc3 {[%clk 0:00:13]}  Rf3+ {[%clk 0:00:09]} 75. Kd2 {[%clk 0:00:13]}  Rd3+ {[%clk 0:00:09]} 76. Kc2 {[%clk 0:00:14]}  Ke5 {[%clk 0:00:08]} 77. Rh8 {[%clk 0:00:14]}  Be4 {[%clk 0:00:08]} 78. Re8+ {[%clk 0:00:14]}  Kd4 {[%clk 0:00:08]} 79. Rd8+ {[%clk 0:00:14]}  Kc5 {[%clk 0:00:08]} 80. Rc8+ {[%clk 0:00:14]}  Kd4 {[%clk 0:00:08]} 81. Rd8+ {[%clk 0:00:14]}  Bd5 {[%clk 0:00:09]} 82. Rd7 {[%clk 0:00:14]}  Rg3 {[%clk 0:00:09]} 83. Rd8 {[%clk 0:00:15]}  Rg2+ {[%clk 0:00:09]} 84. Kc1 {[%clk 0:00:15]} 1/2-1/2


[Site "https://www.chess.com"]

[Event "Titled Tuesday Blitz May 24 Late 2022"]
[White "Kobalia, Mikhail"]
[Black "Antipov, Mikhail Al."]
[WhiteFideId "4119150"]
[BlackFideId "4107012"]
[WhiteElo "2667"]
[BlackElo "2512"]
[Result "1-0"]
[Round "09"]
[TimeControl "180+1"]
[Date "2022.05.24"]
[WhiteClock "0:00:18"]
[BlackClock "0:00:01"]

1. e4 {[%clk 0:02:56]}  e5 {[%clk 0:02:52]} 2. Nf3 {[%clk 0:02:55]}  Nc6 {[%clk 0:02:52]} 3. Bb5 {[%clk 0:02:55]}  Nf6 {[%clk 0:02:52]} 4. d3 {[%clk 0:02:55]}  Ne7 {[%clk 0:02:52]} 5. d4 {[%clk 0:02:55]}  Nxe4 {[%clk 0:02:48]} 6. dxe5 {[%clk 0:02:54]}  a6 {[%clk 0:02:48]} 7. Bd3 {[%clk 0:02:48]}  Nc5 {[%clk 0:02:48]} 8. O-O {[%clk 0:02:44]}  d5 {[%clk 0:02:48]} 9. exd6 {[%clk 0:02:43]}  Qxd6 {[%clk 0:02:48]} 10. Bc4 {[%clk 0:02:43]}  Qxd1 {[%clk 0:02:47]} 11. Rxd1 {[%clk 0:02:44]}  Be6 {[%clk 0:02:47]} 12. Bxe6 {[%clk 0:02:41]}  Nxe6 {[%clk 0:02:48]} 13. Nc3 {[%clk 0:02:40]}  Rd8 {[%clk 0:02:47]} 14. Be3 {[%clk 0:02:38]}  Rxd1+ {[%clk 0:02:36]} 15. Rxd1 {[%clk 0:02:39]}  f6 {[%clk 0:02:37]} 16. Nd4 {[%clk 0:02:33]}  Nxd4 {[%clk 0:02:37]} 17. Bxd4 {[%clk 0:02:33]}  Nc6 {[%clk 0:02:36]} 18. Be3 {[%clk 0:02:27]}  Bd6 {[%clk 0:02:28]} 19. Ne4 {[%clk 0:02:27]}  Be7 {[%clk 0:02:23]} 20. Nc5 {[%clk 0:02:24]}  Bxc5 {[%clk 0:02:22]} 21. Bxc5 {[%clk 0:02:24]}  Ne5 {[%clk 0:02:15]} 22. Kf1 {[%clk 0:02:20]}  Nd7 {[%clk 0:02:12]} 23. Bb4 {[%clk 0:02:19]}  Kd8 {[%clk 0:02:09]} 24. Re1 {[%clk 0:02:17]}  Re8 {[%clk 0:02:08]} 25. Rxe8+ {[%clk 0:02:16]}  Kxe8 {[%clk 0:02:09]} 26. Ke2 {[%clk 0:02:16]}  Kf7 {[%clk 0:02:10]} 27. Kd3 {[%clk 0:02:16]}  Ke6 {[%clk 0:02:10]} 28. Ke4 {[%clk 0:02:17]}  f5+ {[%clk 0:02:10]} 29. Ke3 {[%clk 0:02:17]}  Nb6 {[%clk 0:02:09]} 30. Kd3 {[%clk 0:02:12]}  Nd5 {[%clk 0:02:09]} 31. Bd2 {[%clk 0:02:12]}  g6 {[%clk 0:02:03]} 32. c4 {[%clk 0:02:12]}  Nf6 {[%clk 0:02:03]} 33. f3 {[%clk 0:02:12]}  Nd7 {[%clk 0:02:04]} 34. Kd4 {[%clk 0:02:04]}  Ne5 {[%clk 0:01:57]} 35. Bf4 {[%clk 0:01:57]}  Nc6+ {[%clk 0:01:57]} 36. Kc3 {[%clk 0:01:47]}  Kd7 {[%clk 0:01:57]} 37. b4 {[%clk 0:01:46]}  Nd8 {[%clk 0:01:48]} 38. a4 {[%clk 0:01:41]}  Ne6 {[%clk 0:01:46]} 39. Be5 {[%clk 0:01:40]}  c6 {[%clk 0:01:29]} 40. a5 {[%clk 0:01:37]}  Ke7 {[%clk 0:01:30]} 41. h4 {[%clk 0:01:29]}  Nf8 {[%clk 0:01:25]} 42. Kd4 {[%clk 0:01:26]}  Ne6+ {[%clk 0:01:19]} 43. Ke3 {[%clk 0:01:26]}  Kf7 {[%clk 0:01:18]} 44. g4 {[%clk 0:01:24]}  h5 {[%clk 0:01:18]} 45. g5 {[%clk 0:00:54]}  Ke7 {[%clk 0:01:16]} 46. Kd3 {[%clk 0:00:54]}  Kd7 {[%clk 0:01:16]} 47. Kc3 {[%clk 0:00:54]}  Nd8 {[%clk 0:01:05]} 48. Kd4 {[%clk 0:00:48]}  Ne6+ {[%clk 0:01:00]} 49. Kc3 {[%clk 0:00:48]}  Ke7 {[%clk 0:00:57]} 50. Kd3 {[%clk 0:00:47]}  Ke8 {[%clk 0:00:56]} 51. Kc3 {[%clk 0:00:46]}  Kf7 {[%clk 0:00:47]} 52. Kd3 {[%clk 0:00:46]}  Ke7 {[%clk 0:00:41]} 53. Ke3 {[%clk 0:00:45]}  Kd7 {[%clk 0:00:40]} 54. Kd3 {[%clk 0:00:45]}  c5 {[%clk 0:00:37]} 55. b5 {[%clk 0:00:43]}  Nd8 {[%clk 0:00:28]} 56. Kc3 {[%clk 0:00:36]}  Nf7 {[%clk 0:00:28]} 57. Bf4 {[%clk 0:00:36]}  Ke6 {[%clk 0:00:26]} 58. Be3 {[%clk 0:00:29]}  Ne5 {[%clk 0:00:21]} 59. Bxc5 {[%clk 0:00:25]}  Nxf3 {[%clk 0:00:19]} 60. Bf2 {[%clk 0:00:25]}  f4 {[%clk 0:00:13]} 61. Kb4 {[%clk 0:00:22]}  Ne5 {[%clk 0:00:12]} 62. c5 {[%clk 0:00:23]}  Nd3+ {[%clk 0:00:03]} 63. Kc4 {[%clk 0:00:23]}  Nxf2 {[%clk 0:00:03]} 64. c6 {[%clk 0:00:23]}  axb5+ {[%clk 0:00:02]} 65. Kxb5 {[%clk 0:00:23]}  Kd6 {[%clk 0:00:01]} 66. Kb6 {[%clk 0:00:18]} 1-0


[Site "https://www.chess.com"]